bitfinex/quotes_SOLUSD_20250222
["timestamp","ask_amount","ask_price","bid_price","bid_amount"]
[1740182703940,18.29654054,168.54,168.52,0.03]
[1740182704234,18.29654054,168.54,168.52,0.0001]
[1740182706337,18.29654054,168.54,168.53,0.03]
[1740182706338,1.5215,168.54,168.53,0.03]
[1740182706508,6.1415,168.54,168.53,0.03]
[1740182706911,4.62,168.54,168.53,0.03]
[1740182707910,123.1325,168.57,168.53,0.03]
[1740182708111,4.62,168.56,168.53,0.03]
[1740182708322,4.6,168.55,168.53,0.03]
[1740182708922,4.62,168.54,168.53,0.03]
[1740182712323,104.07299825,168.59,168.53,0.03]
[1740182712534,4.6,168.58,168.53,0.03]
[1740182712840,98.14149825,168.59,168.53,0.03]
[1740182713044,4.6,168.58,168.53,0.03]
[1740182715013,10.5319,168.58,168.53,0.03]
[1740182716359,16.94149825,168.55,168.53,0.03]
[1740182718325,87.1333,168.54,168.53,0.03]
[1740182719370,5.9333,168.54,168.52,0.0001]
[1740182719531,16.94149825,168.53,168.52,0.0001]
[1740182720342,22.87509825,168.53,168.52,0.0001]
[1740182723959,27.45509825,168.53,168.52,0.0001]
[1740182724535,10.5136,168.53,168.52,0.0001]
[1740182726644,27.45509825,168.53,168.52,0.0001]
[1740182730639,21.3627457,168.53,168.52,0.0001]
[1740182733841,5.9336,168.53,168.52,0.0001]
[1740182735470,10.5134,168.54,168.52,0.0001]
[1740182735945,5.9334,168.54,168.52,0.0001]
[1740182736139,4.58,168.53,168.52,0.0001]
[1740182736754,10.5136,168.53,168.52,0.0001]
[1740182740560,21.3627457,168.53,168.52,0.0001]
[1740182740758,21.4257457,168.53,168.52,0.0001]
[1740182742381,24.37637786,168.53,168.52,0.0001]
[1740182756695,114.17637786,168.53,168.52,0.0001]
[1740182757993,114.13637786,168.53,168.52,0.0001]
[1740182759893,20.0,168.48,168.37,81.5]
[1740182760077,10.8491457,168.38,168.36,1.6281]
[1740182760282,15.3891457,168.4,168.36,1.6281]
[1740182760682,15.3891457,168.4,168.36,7.5677]
[1740182761291,15.3891457,168.4,168.36,1.6281]
[1740182761790,4.54,168.4,168.38,5.9389]
[1740182762096,4.54,168.4,168.39,7.9886]
[1740182764976,4.54,168.4,168.39,32.57674886]
[1740182766070,4.54,168.45,168.4,18.64964886]
[1740182766270,4.54,168.45,168.4,100.14964886]
[1740182767625,4.54,168.45,168.41,5.9378]
[1740182767807,10.4766,168.45,168.4,100.14964886]
[1740182767977,4.54,168.45,168.4,106.08774886]
[1740182768173,4.54,168.45,168.4,116.93689456]
[1740182768396,4.54,168.48,168.4,116.93689456]
[1740182769016,4.54,168.48,168.43,18.64964886]
[1740182769188,0.063,168.52,168.45,18.64964886]
[1740182769391,0.063,168.52,168.47,18.64964886]
[1740182769612,0.063,168.52,168.48,5.9354]
[1740182770796,0.063,168.52,168.47,18.64964886]
[1740182771106,0.063,168.52,168.47,24.58524886]
[1740182771832,0.063,168.52,168.46,6.4447]
[1740182772193,0.063,168.52,168.47,18.64964886]
[1740182772600,0.063,168.52,168.5,10.8491457]
[1740182772804,0.063,168.53,168.52,6.1538]
[1740182772995,0.063,168.53,168.52,37.28379456]
[1740182773412,0.063,168.6,168.53,19.64964886]
[1740182773612,0.063,168.6,168.57,18.64964886]
[1740182773925,0.063,168.6,168.57,100.14964886]
[1740182774729,0.063,168.6,168.57,117.07068344]
[1740182775232,0.063,168.6,168.57,81.5]
[1740182775401,0.063,168.6,168.54,81.5]
[1740182776141,0.063,168.6,168.57,16.92103458]
[1740182776301,0.063,168.6,168.55,35.57068344]
[1740182776702,0.063,168.6,168.55,18.64964886]
[1740182778115,0.063,168.6,168.54,81.5]
[1740182779199,16.92103458,168.59,168.54,81.5]
[1740182779394,5.9322,168.57,168.54,81.5]
[1740182779616,22.85323458,168.57,168.54,81.5]
[1740182779821,10.4719,168.58,168.54,81.5]
[1740182783312,10.4719,168.58,168.51,100.14964886]
[1740182783525,25.3016,168.58,168.51,100.14964886]
[1740182787832,7.828,168.6,168.51,100.14964886]
[1740182787833,0.063,168.6,168.56,16.92103458]
[1740182788011,0.063,168.6,168.57,18.64964886]
[1740182790836,0.063,168.6,168.57,24.58174886]
[1740182792135,0.063,168.6,168.57,106.08174886]
[1740182792842,0.063,168.6,168.59,35.57068344]
[1740182793009,0.063,168.6,168.59,117.07068344]
[1740182793974,0.0001,168.61,168.6,27.88524886]
[1740182794164,0.0001,168.61,168.6,110.27441114]
[1740182794740,0.063,168.69,168.67,20.0]
[1740182794945,0.063,168.69,168.68,35.57068344]
[1740182795840,0.063,168.69,168.68,41.49898344]
[1740182796572,0.063,168.69,168.68,42.38789392]
[1740182796740,0.063,168.69,168.68,126.40129392]
[1740182796945,0.063,168.69,168.68,131.82658344]
[1740182797447,0.0001,168.7,168.69,19.64964886]
[1740182797671,0.063,168.75,168.69,18.64964886]
[1740182797855,0.063,168.75,168.7,22.84863458]
[1740182798050,0.063,168.75,168.71,18.64964886]
[1740182800270,0.063,168.75,168.69,87.4279]
[1740182800481,20.0,168.74,168.65,81.5]
[1740182800654,16.92103458,168.66,168.65,51.4259]
[1740182800975,41.60103458,168.66,168.59,51.4259]
[1740182801161,16.92103458,168.64,168.59,51.4259]
[1740182801467,22.85113458,168.64,168.59,51.4259]
[1740182801669,16.92103458,168.62,168.56,19.5978]
[1740182801970,36.92103458,168.64,168.56,19.5978]
[1740182802140,36.92103458,168.64,168.57,18.64964886]
[1740182802336,16.92103458,168.62,168.53,19.5978]
[1740182802560,16.92103458,168.6,168.53,19.5978]
[1740182802871,4.7,168.59,168.54,18.64964886]
[1740182803874,4.7,168.59,168.54,24.58284886]
[1740182805377,31.7874278,168.59,168.54,18.64964886]
[1740182805949,31.7874278,168.59,168.54,24.58284886]
[1740182806147,4.7,168.59,168.54,24.58284886]
[1740182806556,138.3,168.65,168.54,24.58284886]
[1740182806557,89.2401,168.69,168.57,18.64964886]
[1740182806771,89.2401,168.69,168.59,18.64964886]
[1740182806772,4.7,168.68,168.59,18.64964886]
[1740182807076,27.0874278,168.65,168.57,19.5978]
[1740182807481,27.0874278,168.63,168.57,19.5978]
[1740182807655,27.0874278,168.63,168.57,25.5299]
[1740182807857,27.0874278,168.63,168.58,18.64964886]
[1740182809459,27.0874278,168.65,168.58,18.64964886]
[1740182809994,20.0,168.66,168.59,5.9315]
[1740182810171,4.7,168.68,168.6,18.64964886]
[1740182810479,4.7,168.68,168.6,65.33487666]
[1740182810685,4.7,168.68,168.63,18.64964886]
[1740182810903,4.7,168.68,168.63,38.24744886]
[1740182811989,97.552,168.74,168.65,18.64964886]
[1740182812159,4.72,168.71,168.65,38.24744886]
[1740182813489,4.72,168.72,168.65,38.24744886]
[1740182813978,4.72,168.72,168.66,5.929]
[1740182814959,10.647,168.72,168.65,25.5271]
[1740182815366,4.72,168.72,168.65,25.5271]
[1740182815562,10.6469,168.72,168.65,25.5271]
[1740182815965,4.72,168.72,168.65,25.5271]
[1740182816580,4.72,168.72,168.66,18.64964886]
[1740182816984,4.72,168.72,168.66,45.73707666]
[1740182817891,4.72,168.72,168.67,5.9287]
[1740182818262,4.72,168.72,168.68,45.73707666]
[1740182818463,4.72,168.72,168.68,65.33487666]
[1740182819887,0.063,168.75,168.71,18.64964886]
[1740182820103,0.063,168.75,168.72,5.9269]
[1740182820386,0.063,168.75,168.71,24.57684886]
[1740182825293,0.063,168.75,168.71,18.64964886]
[1740182826101,0.063,168.75,168.69,5.9279]
[1740182826271,27.0874278,168.73,168.65,5.9294]
[1740182826783,16.91160018,168.72,168.65,5.9294]
[1740182827090,0.063,168.75,168.66,19.64964886]
[1740182827289,0.063,168.75,168.68,24.57794886]
[1740182827671,0.063,168.75,168.69,16.91160018]
[1740182827971,0.063,168.75,168.69,36.50940018]
[1740182829385,0.063,168.75,168.71,18.64964886]
[1740182831272,0.063,168.75,168.72,5.9269]
[1740182839437,0.063,168.75,168.73,24.57614886]
[1740182839610,0.063,168.75,168.74,27.92349669]
[1740182840333,0.063,168.75,168.74,0.88862167]
[1740182840523,0.063,168.75,168.73,52.55917502]
[1740182840723,0.063,168.75,168.74,19.53825764]
[1740182841524,0.063,168.75,168.74,25.46445764]
[1740182842216,0.063,168.75,168.74,46.06225764]
[1740182842401,0.063,168.75,168.74,47.62385764]
[1740182844139,0.0001,168.75,168.74,48.62385764]
[1740182844523,0.063,168.78,168.77,27.03487502]
[1740182844723,0.063,168.78,168.77,66.17064907]
[1740182845742,0.063,168.78,168.77,67.17064907]
[1740182845945,0.0001,168.78,168.77,67.17064907]
[1740182846936,0.0001,168.78,168.77,45.06097405]
[1740182847846,0.0001,168.78,168.77,47.06097405]
[1740182848050,0.0001,168.78,168.77,46.06097405]
[1740182848937,0.0001,168.78,168.77,47.06097405]
[1740182850025,0.0001,168.8,168.78,1.0]
[1740182850362,0.0001,168.81,168.8,38.64964886]
[1740182850656,0.0001,168.81,168.8,55.52140529]
[1740182851336,0.0001,168.81,168.8,18.64964886]
[1740182852648,0.0001,168.81,168.8,24.57374886]
[1740182854451,0.0001,168.81,168.8,44.17154886]
[1740182854628,0.0001,168.81,168.8,38.24744886]
[1740182855644,0.0001,168.81,168.8,61.04330529]
[1740182858937,0.0001,168.81,168.8,44.17154886]
[1740182860268,0.0001,168.81,168.8,19.6608]
[1740182861244,0.0001,168.81,168.8,0.063]
[1740182866534,5.9239,168.81,168.8,0.063]
[1740182867631,0.0001,168.81,168.8,0.063]
[1740182869466,0.0001,168.81,168.8,55.18220529]
[1740182870182,0.02,168.82,168.81,19.64964886]
[1740182870344,0.02,168.82,168.81,46.17124886]
[1740182871976,0.02,168.82,168.81,45.17124886]
[1740182872379,0.02,168.82,168.81,44.17124886]
[1740182872562,0.02,168.82,168.81,38.24744886]
[1740182873856,0.02,168.82,168.81,55.11920529]
[1740182874189,0.02,168.82,168.81,61.04300529]
[1740182874587,0.02,168.82,168.81,71.1640928]
[1740182875689,0.02,168.82,168.81,44.17124886]
[1740182884571,0.02,168.82,168.81,38.24744886]
[1740182885996,0.02,168.82,168.81,44.17124886]
[1740182886674,0.02,168.82,168.81,38.24744886]
[1740182887090,0.02,168.82,168.81,44.17124886]
[1740182888798,0.02,168.82,168.81,38.24744886]
[1740182889501,0.02,168.82,168.81,19.5978]
[1740182889679,47.01284394,168.82,168.8,0.063]
[1740182891203,5.9238,168.81,168.8,0.063]
[1740182895082,32.91664394,168.81,168.8,0.063]
[1740182896809,42.83421504,168.82,168.8,0.063]
[1740182897007,0.02,168.82,168.8,0.063]
[1740182897984,0.02,168.82,168.8,19.6608]
[1740182898180,0.02,168.82,168.81,18.64964886]
[1740182898396,0.02,168.82,168.8,19.6608]
[1740182899286,0.02,168.82,168.8,25.5847]
[1740182900194,0.02,168.82,168.8,19.6608]
[1740182902004,0.02,168.82,168.8,0.063]
[1740182902305,16.91071504,168.82,168.8,0.063]
[1740182902510,24.71071504,168.82,168.8,0.063]
[1740182903405,0.02,168.82,168.8,0.063]
[1740182907922,0.02,168.82,168.8,19.6608]
[1740182908901,0.02,168.82,168.8,25.5848]
[1740182909593,0.02,168.82,168.8,19.6608]
[1740182911025,0.02,168.82,168.8,25.5849]
[1740182912423,0.02,168.82,168.8,19.6608]
[1740182912919,0.02,168.82,168.8,25.5847]
[1740182913118,0.02,168.82,168.81,18.64964886]
[1740182914930,0.02,168.82,168.81,24.57344886]
[1740182915628,0.02,168.82,168.8,25.5848]
[1740182921707,0.02,168.82,168.81,18.64964886]
[1740182922022,0.02,168.82,168.81,38.24744886]
[1740182923831,0.02,168.82,168.81,44.17124886]
[1740182927418,0.02,168.82,168.81,45.80374886]
[1740182930429,0.02,168.82,168.81,45.86674886]
[1740182933635,0.063,168.9,168.83,18.64964886]
[1740182933825,0.063,168.9,168.86,16.89071504]
[1740182934021,0.063,168.9,168.87,18.64964886]
[1740182934334,0.063,168.9,168.87,38.24744886]
[1740182934535,0.063,168.9,168.88,16.89071504]
[1740182934731,0.063,168.9,168.89,18.64964886]
[1740182936240,0.063,168.9,168.89,24.57064886]
[1740182936738,0.063,168.9,168.89,5.921]
[1740182939050,0.063,168.9,168.88,25.5189]
[1740182942340,0.0001,168.9,168.89,26.15214886]
[1740182944653,0.063,168.98,168.97,16.89071504]
[1740182944852,0.063,168.98,168.97,35.5403639]
[1740182945157,0.063,168.98,168.97,55.1381639]
[1740182946230,0.063,168.98,168.97,61.94366594]
[1740182946552,0.0001,168.98,168.97,62.94366594]
[1740182946856,0.0001,168.98,168.97,39.1347509]
[1740182947033,0.0001,168.98,168.97,38.24744886]
[1740182947233,0.0001,168.98,168.97,44.16564886]
[1740182947751,0.0001,168.98,168.97,19.5978]
[1740182947942,0.0001,168.98,168.97,44.16564886]
[1740182949438,0.0001,168.98,168.97,19.5978]
[1740182949759,0.0001,168.98,168.97,25.516]
[1740182950254,0.0001,168.98,168.97,19.5978]
[1740182951453,0.0001,168.98,168.97,25.516]
[1740182951753,0.0001,168.98,168.97,61.94384904]
[1740182953147,4.723,169.07,168.97,61.94384904]
[1740182953148,4.3791,169.07,168.98,18.64964886]
[1740182953342,4.3791,169.07,168.98,38.24744886]
[1740182953659,21.26981504,169.07,168.98,38.24744886]
[1740182953858,21.26981504,169.07,168.98,19.5978]
[1740182954033,1.5068,169.04,168.98,19.5978]
[1740182954239,6.3631,169.03,168.98,19.5978]
[1740182955044,6.3631,169.03,168.98,25.5155]
[1740182955383,6.3631,169.03,168.99,35.5403639]
[1740182955658,1.5068,169.04,168.99,35.5403639]
[1740182956531,7.4226,169.04,168.98,19.5978]
[1740182957442,16.89071504,169.03,168.98,19.5978]
[1740182957659,6.5548,169.02,168.93,19.5978]
[1740182957966,16.89071504,169.01,168.93,19.5978]
[1740182958263,16.89071504,168.99,168.93,19.5978]
[1740182958473,16.89071504,168.97,168.89,19.5978]
[1740182958667,98.09071504,168.97,168.89,19.5978]
[1740182959039,5.9185,168.96,168.89,25.5186]
[1740182959372,98.09071504,168.97,168.89,25.5186]
[1740182959572,1.6611,168.98,168.9,18.64964886]
[1740182960446,7.579,168.98,168.9,18.64964886]
[1740182961166,7.579,168.98,168.91,5.9203]
[1740182961370,7.579,168.98,168.9,5.9206]
[1740182961955,7.579,168.98,168.89,19.5978]
[1740182961956,16.89071504,168.97,168.89,19.5978]
[1740182963036,6.5548,168.95,168.89,19.5978]
[1740182964937,6.5548,168.95,168.89,25.5188]
[1740182965141,12.474,168.95,168.89,19.5978]
[1740182966155,12.474,168.95,168.88,0.063]
[1740182966963,12.474,168.95,168.89,0.063]
[1740182970414,12.474,168.95,168.89,19.6608]
[1740182970878,33.98471504,168.95,168.89,19.6608]
[1740182971084,16.89071504,168.93,168.89,19.6608]
[1740182972387,5.9199,168.92,168.89,19.6608]
[1740182974375,5.9192,168.94,168.89,19.6608]
[1740182975290,1.5675,168.92,168.89,0.063]
[1740182975468,16.89071504,168.91,168.89,0.063]
[1740182976293,6.0373,168.9,168.89,0.063]
[1740182976468,11.9579,168.9,168.89,0.063]
[1740182978970,11.9579,168.9,168.88,0.063]
[1740182979290,98.09071504,168.89,168.88,0.063]
[1740182980104,20.0,168.86,168.81,0.063]
[1740182980405,23.05821504,168.85,168.81,0.063]
[1740182980597,104.25821504,168.85,168.81,0.063]
[1740182980892,16.89071504,168.83,168.81,0.063]
[1740182981392,6.0373,168.84,168.81,0.063]
[1740182983199,11.9601,168.84,168.81,0.063]
[1740182985579,6.0373,168.84,168.81,0.063]
[1740182985781,104.25821504,168.85,168.81,0.063]
[1740182986297,99.65821504,168.85,168.81,0.063]
[1740182986474,104.23821504,168.85,168.81,0.063]
[1740182987299,99.65821504,168.85,168.81,0.063]
[1740182987488,102.67071504,168.85,168.81,0.063]
[1740182988981,85.78,168.85,168.81,0.063]
[1740182991188,4.58,168.85,168.81,0.063]
[1740182994198,22.81251504,168.87,168.81,0.063]
[1740182994397,4.58,168.86,168.81,0.063]
[1740183000599,10.502,168.86,168.81,0.063]
[1740183001402,10.80237698,168.84,168.81,0.063]
[1740183001699,15.38237698,168.86,168.81,0.063]
[1740183005396,21.30457698,168.86,168.81,0.063]
[1740183005997,15.38237698,168.86,168.81,0.063]
[1740183008003,21.30437698,168.86,168.81,0.063]
[1740183008315,15.38237698,168.86,168.81,0.063]
[1740183009313,21.30437698,168.86,168.81,0.063]
[1740183010437,4.58,168.86,168.81,0.063]
[1740183011319,10.5021,168.86,168.81,0.063]
[1740183013318,20.0,168.83,168.81,0.063]
[1740183013494,21.30447698,168.86,168.81,0.063]
[1740183018912,87.1217,168.87,168.81,0.063]
[1740183019122,4.58,168.86,168.81,0.063]
[1740183019528,87.1217,168.87,168.81,0.063]
[1740183019723,4.58,168.86,168.81,0.063]
[1740183020625,10.502,168.86,168.81,0.063]
[1740183022027,21.30437698,168.86,168.81,0.063]
[1740183023107,15.38237698,168.86,168.81,0.063]
[1740183023908,4.58,168.86,168.81,0.063]
[1740183024922,0.03,168.88,168.81,19.6608]
[1740183025535,0.03,168.88,168.81,30.46317698]
[1740183026542,0.03,168.88,168.82,20.732]
[1740183027037,10.80237698,168.86,168.81,19.6608]
[1740183027416,10.80237698,168.86,168.81,25.5845]
[1740183028020,0.03,168.88,168.81,25.5845]
[1740183028212,0.03,168.88,168.82,18.64964886]
[1740183028421,0.03,168.88,168.82,38.24744886]
[1740183028618,0.03,168.88,168.83,16.72547698]
[1740183028815,0.03,168.88,168.83,51.13097698]
[1740183029021,0.03,168.88,168.84,1.6012]
[1740183029420,0.03,168.88,168.84,21.199]
[1740183029927,0.03,168.88,168.85,6.326]
[1740183030128,0.03,168.88,168.85,25.9238]
[1740183030524,0.03,168.88,168.86,24.57164886]
[1740183030717,0.03,168.88,168.87,16.86298692]
[1740183031939,0.03,168.88,168.86,44.16944886]
[1740183034946,0.03,168.88,168.86,25.5198]
[1740183036847,0.03,168.88,168.86,19.5978]
[1740183037052,0.03,168.88,168.84,19.5978]
[1740183037438,16.86298692,168.87,168.84,19.5978]
[1740183039655,16.86298692,168.87,168.84,19.6608]
[1740183040475,22.78468692,168.87,168.84,0.063]
[1740183040644,16.86298692,168.85,168.84,0.063]
[1740183042239,98.06298692,168.85,168.84,0.063]
[1740183042655,103.98538692,168.85,168.84,0.063]
[1740183043238,123.63503578,168.85,168.84,0.0001]
[1740183043449,127.64181763,168.85,168.84,0.0001]
[1740183044243,46.44181763,168.85,168.84,0.0001]
[1740183044573,56.51263578,168.82,168.81,0.0001]
[1740183044774,1.0,168.81,168.8,0.0001]
[1740183044943,1.0,168.81,168.72,0.063]
[1740183044944,20.0,168.77,168.72,0.063]
[1740183045264,16.86298692,168.76,168.72,0.063]
[1740183045438,4.56,168.75,168.72,0.063]
[1740183046766,5.9262,168.74,168.72,0.063]
[1740183047844,22.78918692,168.74,168.72,0.063]
[1740183049741,16.86298692,168.74,168.72,0.063]
[1740183054371,22.78928692,168.74,168.72,0.063]
[1740183056555,81.2,168.73,168.72,0.063]
[1740183056748,18.64964886,168.73,168.72,0.063]
[1740183057062,19.64964886,168.73,168.72,0.063]
[1740183057262,19.64964886,168.73,168.72,0.0001]
[1740183057570,20.64964886,168.73,168.72,0.0001]
[1740183057768,26.57624886,168.73,168.72,0.0001]
[1740183061069,181.73923578,168.73,168.72,0.0001]
[1740183061279,16.86298692,168.68,168.67,0.063]
[1740183061582,21.38298692,168.68,168.67,0.063]
[1740183061880,27.31128692,168.68,168.67,0.063]
[1740183066358,20.0,168.65,168.64,0.063]
[1740183066557,36.86298692,168.65,168.64,0.063]
[1740183067963,42.79238692,168.65,168.64,0.063]
[1740183068586,36.76282403,168.65,168.64,0.063]
[1740183068976,25.9294,168.65,168.64,0.063]
[1740183069180,30.4294,168.65,168.64,0.063]
[1740183069481,41.26282403,168.65,168.64,0.063]
[1740183079203,60.91247289,168.65,168.63,0.063]
[1740183079388,199.21247289,168.65,168.63,0.063]
[1740183082895,164.2294,168.65,168.63,0.063]
[1740183083198,85.7,168.64,168.63,0.063]
[1740183083785,96.53342403,168.64,168.63,0.063]
[1740183084374,102.46312403,168.64,168.63,0.063]
[1740183087296,4.5,168.64,168.63,0.063]
[1740183087703,10.83342403,168.66,168.63,0.063]
[1740183088191,4.5,168.65,168.63,0.063]
[1740183088379,10.4294,168.65,168.63,0.063]
[1740183088774,4.5,168.65,168.63,0.063]
[1740183088978,0.03,168.67,168.63,38.31044886]
[1740183089191,0.03,168.67,168.64,10.83342403]
[1740183090698,0.03,168.67,168.65,5.9294]
[1740183090874,0.03,168.67,168.65,25.5272]
[1740183091702,0.03,168.67,168.66,18.64964886]
[1740183092004,10.86342403,168.73,168.66,118.96957289]
[1740183092005,0.03,168.73,168.66,118.96957289]
[1740183092378,0.03,168.73,168.69,18.64964886]
[1740183092575,0.03,168.73,168.7,5.9276]
[1740183092892,0.03,168.73,168.71,18.64964886]
[1740183094618,0.03,168.73,168.71,24.57674886]
[1740183095119,0.03,168.73,168.7,81.5]
[1740183096111,0.03,168.73,168.66,95.4155]
[1740183096112,10.86342403,168.73,168.66,95.4155]
[1740183096524,16.79022403,168.73,168.66,95.4155]
[1740183096824,16.79022403,168.73,168.66,89.4865]
[1740183097024,10.83342403,168.71,168.66,1.5346]
[1740183097204,4.5,168.7,168.66,1.5346]
[1740183100416,4.53,168.7,168.66,1.5346]
[1740183101807,10.4577,168.7,168.66,1.5346]
[1740183102914,4.53,168.7,168.66,1.5346]
[1740183103426,4.53,168.7,168.64,5.9927]
[1740183103427,10.4577,168.7,168.64,0.063]
[1740183109034,4.53,168.7,168.64,18.71264886]
[1740183109235,0.03,168.7,168.66,10.83342403]
[1740183109528,0.03,168.7,168.67,5.9287]
[1740183110400,0.03,168.7,168.68,31.10417289]
[1740183110605,0.03,168.7,168.68,112.60417289]
[1740183111323,0.03,168.7,168.69,6.5469]
[1740183111716,0.03,168.7,168.69,12.4749]
[1740183112603,0.0001,168.7,168.69,114.62454886]
[1740183115549,0.03,168.8,168.7,20.64964886]
[1740183115734,0.03,168.8,168.73,10.83342403]
[1740183116042,0.03,168.8,168.73,92.33342403]
[1740183117045,0.03,168.8,168.74,5.9262]
[1740183119114,0.03,168.8,168.73,92.33342403]
[1740183119115,10.83342403,168.79,168.73,81.5]
[1740183119520,10.83342403,168.77,168.69,87.4279]
[1740183120445,81.2,168.79,168.71,10.83342403]
[1740183120645,97.95792403,168.79,168.7,18.64964886]
[1740183120850,10.83342403,168.77,168.69,87.4279]
[1740183121951,5.9255,168.76,168.69,87.4279]
[1740183122448,10.83342403,168.75,168.69,87.4279]
[1740183122648,10.83342403,168.75,168.69,81.5]
[1740183122649,4.48,168.74,168.69,81.5]
[1740183122952,10.83342403,168.73,168.69,81.5]
[1740183123245,10.83342403,168.73,168.67,5.9286]
[1740183123952,16.76022403,168.73,168.66,87.4289]
[1740183124625,22.83471586,168.73,168.66,87.4289]
[1740183128236,5.9268,168.73,168.66,87.4289]
[1740183132366,10.4064,168.74,168.66,104.33681586]
[1740183133961,81.2,168.76,168.69,16.90791586]
[1740183134348,12.6517,168.78,168.71,16.90791586]
[1740183134559,6.1095,168.78,168.71,16.90791586]
[1740183135268,12.0343,168.78,168.71,16.90791586]
[1740183135450,12.0343,168.78,168.69,81.5]
[1740183135648,16.90791586,168.77,168.69,81.5]
[1740183135841,16.90791586,168.75,168.69,81.5]
[1740183136042,5.9262,168.74,168.69,81.5]
[1740183136270,5.9262,168.74,168.67,5.9284]
[1740183136449,12.308,168.74,168.67,5.9284]
[1740183141083,12.308,168.74,168.66,87.492]
[1740183148574,12.308,168.74,168.66,98.30903483]
[1740183152185,4.48,168.76,168.7,10.81703483]
[1740183153491,4.48,168.76,168.71,5.9273]
[1740183156783,10.4055,168.76,168.69,5.928]
[1740183156983,10.4055,168.76,168.68,10.81703483]
[1740183156984,21.22253483,168.76,168.67,5.9287]
[1740183157388,21.22253483,168.76,168.67,87.4287]
[1740183158597,21.22253483,168.76,168.67,5.9287]
[1740183158598,16.90655995,168.74,168.67,5.9287]
[1740183158964,27.31205995,168.76,168.67,5.9287]
[1740183160611,27.34205995,168.76,168.66,5.992]
[1740183163481,81.23,168.76,168.69,16.90655995]
[1740183163802,81.23,168.76,168.71,16.90655995]
[1740183164992,81.23,168.76,168.69,36.90655995]
[1740183165501,81.23,168.76,168.7,5.9276]
[1740183168204,87.1557,168.76,168.7,5.9276]
[1740183168388,16.90655995,168.72,168.66,81.563]
[1740183168593,4.48,168.71,168.66,81.563]
[1740183168803,4.48,168.71,168.66,0.063]
[1740183170083,106.15955995,168.7,168.66,0.063]
[1740183170283,16.90655995,168.68,168.66,0.063]
[1740183173293,4.48,168.67,168.66,0.063]
[1740183175098,8.053,168.7,168.66,0.063]
[1740183175315,4.48,168.69,168.66,0.063]
[1740183176418,10.4083,168.69,168.66,0.063]
[1740183180029,4.48,168.69,168.66,0.063]
[1740183180234,4.48,168.7,168.66,0.063]
[1740183180906,4.48,168.7,168.66,16.96955995]
[1740183182017,4.48,168.7,168.67,5.9287]
[1740183182519,4.48,168.74,168.68,16.90655995]
[1740183182825,4.48,168.74,168.7,16.90655995]
[1740183183329,4.51,168.76,168.7,16.90655995]
[1740183184011,4.51,168.76,168.71,5.9273]
[1740183184536,0.03,168.73,168.71,5.9273]
[1740183185707,0.03,168.73,168.72,16.90655995]
[1740183185912,0.03,168.76,168.72,98.40655995]
[1740183186113,0.03,168.76,168.75,16.90655995]
[1740183186733,0.03,168.76,168.73,16.90655995]
[1740183187433,0.03,168.76,168.74,5.9262]
[1740183187616,0.03,168.76,168.73,5.9265]
[1740183187821,0.03,168.76,168.74,81.5]
[1740183188835,0.03,168.76,168.75,5.9259]
[1740183191730,0.03,168.76,168.74,81.5]
[1740183192421,0.03,168.76,168.74,87.4261]